bitfinex/quotes_ETHUSD_20251120
["timestamp","ask_amount","ask_price","bid_price","bid_amount"]
[1763628223413,0.72117794,3034.9,3034.7,3.29521863]
[1763628223607,0.0843,3034.8,3034.7,4.20221127]
[1763628224201,0.78992856,3034.8,3034.7,4.20221127]
[1763628224396,0.0843,3034.8,3034.7,4.69699264]
[1763628224595,0.78995754,3034.8,3034.7,4.69699264]
[1763628225919,0.78995754,3034.8,3034.7,7.99221127]
[1763628226327,0.81665754,3034.8,3034.7,8.92841127]
[1763628226628,0.111,3034.8,3034.7,10.15078441]
[1763628226995,0.111,3034.8,3034.7,9.66488441]
[1763628228422,0.5837,3034.8,3034.7,9.21458441]
[1763628228623,0.5837,3034.8,3034.7,7.99221127]
[1763628231629,0.111,3034.8,3034.7,7.99221127]
[1763628231832,0.5801,3034.8,3034.7,4.69699264]
[1763628232137,0.111,3034.8,3034.7,8.92841127]
[1763628232529,0.111,3034.8,3034.7,8.44251127]
[1763628232860,4.64556563,3035.3,3034.7,8.44251127]
[1763628233038,1.58934748,3035.2,3034.7,8.44251127]
[1763628233208,1.01344528,3035.1,3034.7,8.44251127]
[1763628233410,1.01344528,3035.0,3034.7,8.44251127]
[1763628233739,0.70670188,3034.9,3034.7,8.44251127]
[1763628233940,0.111,3034.8,3034.7,8.44251127]
[1763628234239,0.81889845,3034.8,3034.7,8.44251127]
[1763628236272,0.81889845,3034.8,3034.7,8.92841127]
[1763628236409,0.81889845,3034.8,3034.7,8.44251127]
[1763628236749,0.111,3034.8,3034.7,8.44251127]
[1763628236931,0.111,3034.9,3034.7,13.36034387]
[1763628237139,0.111,3034.9,3034.8,0.4859]
[1763628237314,0.82010634,3034.9,3034.8,0.9362]
[1763628237512,0.111,3035.0,3034.8,2.27233439]
[1763628237711,0.111,3035.0,3034.9,3.78090148]
[1763628237912,0.111,3035.0,3034.9,4.26415149]
[1763628239195,0.0012,3035.3,3034.9,7.07325297]
[1763628239353,1.12839904,3035.2,3034.9,7.52620296]
[1763628239547,1.01739904,3035.1,3034.9,7.52620296]
[1763628239752,0.111,3035.2,3034.9,8.99580736]
[1763628239984,0.70946605,3035.1,3034.9,8.99580736]
[1763628240165,0.111,3035.2,3034.9,8.99580736]
[1763628240166,0.1102,3035.2,3034.9,8.99580736]
[1763628240366,0.70946269,3035.1,3034.9,8.05960736]
[1763628240566,0.1102,3035.2,3034.9,8.05960736]
[1763628241486,0.1102,3035.2,3035.0,3.79]
[1763628241663,0.1102,3035.2,3035.0,7.08483521]
[1763628241863,0.0843,3035.1,3035.0,7.08483521]
[1763628242585,0.1102,3035.2,3035.0,7.08483521]
[1763628242896,0.0012,3035.3,3035.0,7.08483521]
[1763628242897,0.111,3035.1,3035.0,7.08483521]
[1763628243084,0.111,3035.1,3035.0,7.53513521]
[1763628244259,0.1953,3035.1,3035.0,7.08483521]
[1763628244696,0.6564,3035.1,3035.0,7.08483521]
[1763628244898,0.1953,3035.1,3035.0,7.08483521]
[1763628245293,0.6564,3035.1,3035.0,3.79]
[1763628245583,0.6564,3035.1,3034.7,4.69699264]
[1763628245785,0.0843,3034.8,3034.7,7.99220454]
[1763628246306,0.111,3034.8,3034.7,8.44250454]
[1763628247587,0.111,3034.8,3034.7,9.32367928]
[1763628248290,0.111,3034.8,3034.7,9.79417928]
[1763628248668,0.111,3034.8,3034.7,9.32367928]
[1763628251705,0.111,3034.8,3034.7,9.79417928]
[1763628252690,0.0012,3035.3,3034.7,9.79417928]
[1763628252901,0.111,3035.2,3034.8,2.28206763]
[1763628253097,0.0012,3035.3,3034.8,2.28206763]
[1763628253292,0.111,3035.2,3034.9,0.4705]
[1763628253498,0.111,3035.2,3035.0,0.03294892]
[1763628253697,0.111,3035.2,3035.1,0.4555]
[1763628253906,0.111,3035.2,3035.1,3.75028435]
[1763628254108,0.0012,3035.3,3035.1,8.31578424]
[1763628254272,0.0012,3035.3,3035.2,0.95894675]
[1763628254604,0.1122,3035.3,3035.2,0.926]
[1763628255305,0.0012,3035.3,3035.2,0.926]
[1763628255611,0.0012,3035.3,3035.2,2.27417434]
[1763628256004,0.0012,3035.3,3035.2,5.56885014]
[1763628256774,0.0012,3035.3,3035.2,5.09835014]
[1763628257105,0.0919,3035.3,3035.1,4.3815401]
[1763628257491,0.0919,3035.3,3035.1,7.67632445]
[1763628258011,0.0012,3035.3,3035.1,7.67632445]
[1763628258211,0.1122,3035.3,3035.2,0.926]
[1763628258391,0.1122,3035.3,3035.2,1.80462244]
[1763628259392,0.1122,3035.3,3035.2,5.09929824]
[1763628261482,0.0012,3035.3,3035.2,8.92224499]
[1763628261690,0.0012,3035.3,3035.2,8.88929824]
[1763628262313,0.0012,3035.3,3035.2,5.09929824]
[1763628262499,0.002,3035.7,3035.3,11.580231]
[1763628262713,0.002,3035.7,3035.6,8.58702175]
[1763628263024,0.002,3035.7,3035.6,9.27017401]
[1763628263195,0.002,3035.7,3035.6,7.21160401]
[1763628263608,0.002,3035.7,3035.6,10.50584567]
[1763628264424,0.0012,3035.7,3035.6,10.50584567]
[1763628264741,0.0012,3035.7,3035.6,11.66428452]
[1763628265038,0.0012,3035.7,3035.6,6.28567315]
[1763628265190,0.0012,3035.7,3035.6,4.6567343]
[1763628267722,0.0012,3035.7,3035.6,8.4467343]
[1763628268291,0.0919,3035.7,3035.6,7.9912343]
[1763628268497,0.0012,3035.7,3035.6,7.9912343]
[1763628268711,0.0012,3035.7,3035.6,9.11979229]
[1763628268997,0.0012,3035.7,3035.6,9.59609229]
[1763628271745,0.0012,3035.7,3035.6,9.11979229]
[1763628273646,0.0919,3035.7,3035.6,9.11979229]
[1763628274214,0.0012,3035.7,3035.6,9.59609229]
[1763628275250,0.0012,3035.7,3035.6,10.07109229]
[1763628275844,0.0012,3035.7,3035.6,13.76129229]
[1763628276154,0.0012,3035.7,3035.6,13.39915629]
[1763628276358,0.0012,3035.7,3035.6,12.71029629]
[1763628277459,0.0012,3035.7,3035.6,10.07109229]
[1763628277663,0.0012,3035.7,3035.6,9.59609229]
[1763628278036,0.0012,3035.7,3035.6,10.06159229]
[1763628279867,0.0012,3035.7,3035.6,16.14770229]
[1763628280869,0.0012,3035.7,3035.6,25.64866929]
[1763628281167,0.0012,3035.7,3035.6,23.49202229]
[1763628281744,0.0012,3035.7,3035.6,10.06159229]
[1763628282069,0.0012,3035.7,3035.6,22.59202029]
[1763628282996,0.0012,3035.7,3035.6,20.37585829]
[1763628283156,0.0012,3035.7,3035.6,19.37585829]
[1763628283967,0.0012,3035.7,3035.6,19.37948129]
[1763628284555,0.0012,3035.7,3035.6,13.94603729]
[1763628284762,0.0012,3035.7,3035.6,10.06159229]
[1763628284949,0.0012,3035.7,3035.6,13.39342129]
[1763628285149,0.0012,3035.7,3035.6,12.82142129]
[1763628285340,0.0012,3035.7,3035.6,13.15152129]
[1763628285645,0.0012,3035.7,3035.6,12.82142129]
[1763628286045,0.0012,3035.7,3035.6,13.13921129]
[1763628286257,0.0012,3035.7,3035.6,12.82142129]
[1763628286789,0.0012,3035.7,3035.6,17.51295442]
[1763628287152,0.0012,3035.7,3035.6,21.67408442]
[1763628288148,0.0012,3035.7,3035.6,22.02887442]
[1763628288351,0.0004,3035.7,3035.6,22.02887442]
[1763628288643,0.0004,3035.7,3035.6,21.06025142]
[1763628289084,0.0004,3035.7,3035.6,20.84385142]
[1763628290105,0.0837,3035.7,3035.6,9.11979229]
[1763628293210,0.0837,3035.7,3035.6,7.9912343]
[1763628293773,0.0004,3035.7,3035.6,8.4495343]
[1763628295409,0.0004,3035.7,3035.6,8.9150343]
[1763628300424,0.0004,3035.7,3035.6,12.6704903]
[1763628300630,0.0004,3035.7,3035.6,8.9150343]
[1763628300939,0.0004,3035.7,3035.6,13.2912256]
[1763628301103,0.0004,3035.7,3035.6,10.6052256]
[1763628301305,0.0004,3035.7,3035.6,14.4666476]
[1763628301747,0.0004,3035.7,3035.6,10.1397256]
[1763628304739,0.0004,3035.7,3035.6,10.6052256]
[1763628305309,0.0004,3035.7,3035.6,12.6333856]
[1763628305547,0.0004,3035.7,3035.6,15.0182616]
[1763628305934,0.0004,3035.7,3035.6,14.0039476]
[1763628306617,0.0004,3035.7,3035.6,20.8924486]
[1763628307557,0.0004,3035.7,3035.6,21.0867896]
[1763628308072,0.0004,3035.7,3035.6,19.0972596]
[1763628308259,0.0004,3035.7,3035.6,13.3420786]
[1763628308555,0.0004,3035.7,3035.6,10.6052256]
[1763628308749,0.0004,3035.7,3035.6,13.1597786]
[1763628309572,0.0004,3035.7,3035.6,10.6052256]
[1763628309785,0.0004,3035.7,3035.6,14.4366276]
[1763628310682,0.0004,3035.7,3035.6,16.2273456]
[1763628311729,0.0004,3035.7,3035.6,19.3057376]
[1763628311932,0.002,3036.0,3035.7,0.90699264]
[1763628312152,0.0012,3036.0,3035.9,14.04966477]
[1763628312532,0.0012,3036.0,3035.9,13.70429877]
[1763628312727,0.0012,3036.0,3035.9,14.86201477]
[1763628313098,0.002,3036.4,3036.2,3.7868]
[1763628313287,0.002,3036.4,3036.3,11.77061715]
[1763628313937,0.0546,3036.4,3036.3,11.77061715]
[1763628315561,0.002,3036.4,3036.3,16.22617979]
[1763628315768,0.002,3036.4,3036.3,16.68997979]
[1763628315966,0.002,3036.4,3036.3,18.80443713]
[1763628316335,0.002,3036.4,3036.3,15.25586713]
[1763628316732,0.002,3036.4,3036.3,17.19946013]
[1763628318178,0.002,3036.4,3036.3,17.66326013]
[1763628319485,0.002,3036.4,3036.3,32.24158109]
[1763628319792,0.002,3036.8,3036.3,37.00968547]
[1763628319957,0.002,3036.8,3036.7,5.15413496]
[1763628320151,0.002,3036.8,3036.7,33.18445197]
[1763628320355,0.002,3036.8,3036.7,28.49792097]
[1763628320686,0.002,3036.8,3036.7,27.04027497]
[1763628320987,0.002,3036.8,3036.7,23.25460597]
[1763628321301,0.002,3036.8,3036.7,26.37841507]
[1763628321453,0.002,3036.8,3036.7,27.57841507]
[1763628321909,0.002,3036.8,3036.7,26.37841507]
[1763628322186,0.002,3036.8,3036.7,25.19023007]
[1763628322488,0.002,3036.8,3036.7,30.32566107]
[1763628322691,0.002,3037.1,3036.8,0.90699264]
[1763628322990,0.002,3037.1,3037.0,6.0611276]
[1763628323382,0.002,3037.1,3037.0,6.5516276]
[1763628324354,0.002,3037.1,3037.0,16.89408268]
[1763628324965,0.002,3037.1,3037.0,12.37178068]
[1763628325157,0.002,3037.1,3037.0,12.78081868]
[1763628325356,0.002,3037.1,3037.0,16.82967661]
[1763628325587,0.002,3037.1,3037.0,16.33917661]
[1763628326496,0.002,3037.1,3037.0,16.28337661]
[1763628327290,0.002,3037.1,3037.0,14.42036861]
[1763628327794,0.002,3037.1,3037.0,18.20716861]
[1763628329697,0.002,3037.1,3037.0,14.99237361]
[1763628333414,0.0787,3037.1,3037.0,11.69965053]
[1763628333710,0.5472,3037.1,3037.0,4.69379264]
[1763628334110,0.5472,3037.1,3037.0,3.7868]
[1763628334286,0.6582,3037.1,3037.0,3.7868]
[1763628335815,0.5472,3037.1,3037.0,3.7868]
[1763628336014,0.6582,3037.1,3037.0,3.7868]
[1763628336316,0.6574,3037.1,3037.0,3.7868]
[1763628336516,0.405504,3037.0,3036.7,4.69033496]
[1763628336720,0.0047,3036.8,3036.6,0.001]
[1763628336888,0.0721,3036.7,3036.6,0.001]
[1763628337512,0.5446,3036.7,3036.6,0.001]
[1763628340088,0.6556,3036.7,3036.6,0.001]
[1763628345688,0.6556,3036.7,3036.6,4.69133496]
[1763628348823,0.6556,3036.7,3036.6,7.98449178]
[1763628349892,0.6556,3036.7,3036.6,4.69133496]
[1763628351425,0.6556,3036.7,3036.6,8.47813496]
[1763628352627,0.6556,3036.7,3036.6,11.77129178]
[1763628352996,0.6556,3036.7,3036.6,8.47813496]
[1763628355721,0.6556,3036.7,3036.6,11.77129178]
[1763628355928,0.6556,3036.7,3036.6,8.47813496]
[1763628357137,0.5446,3036.7,3036.6,8.47813496]
[1763628357325,0.6556,3036.7,3036.6,8.47813496]
[1763628360235,0.6548,3036.7,3036.6,8.47813496]
[1763628362236,4.6616727,3036.7,3036.6,0.001]
[1763628363004,0.37902033,3036.7,3036.6,0.001]
[1763628363235,0.6031,3036.7,3036.6,0.37988]
[1763628363439,0.6031,3036.7,3036.6,0.001]
[1763628363940,0.111,3036.7,3036.6,0.9322]
[1763628364235,0.111,3036.7,3036.6,4.22535682]
[1763628364421,0.111,3036.7,3036.6,5.82503198]
[1763628365304,0.0012,3037.1,3036.6,5.82503198]
[1763628365305,0.0012,3037.1,3036.6,9.1181888]
[1763628365539,0.0012,3037.1,3037.0,4.69033496]
[1763628365740,0.30933463,3037.1,3037.0,4.69033496]
[1763628366041,0.1756,3037.1,3037.0,4.69033496]
[1763628366231,0.48379483,3037.1,3037.0,4.69033496]
[1763628366437,0.1756,3037.1,3037.0,4.69033496]
[1763628369149,0.1756,3037.1,3037.0,8.47713496]
[1763628369345,0.1122,3037.1,3037.0,8.47713496]
[1763628369514,0.1122,3037.1,3037.0,10.14662553]
[1763628369716,0.1122,3037.1,3037.0,9.65412553]
[1763628370771,0.1684,3037.1,3037.0,9.65412553]
[1763628371067,0.1684,3037.1,3037.0,8.47713496]
[1763628371237,0.6557,3037.1,3037.0,8.47713496]
[1763628372049,0.1684,3037.1,3037.0,8.47713496]
[1763628373452,0.1122,3037.1,3037.0,8.96963496]
[1763628374152,0.1684,3037.1,3037.0,8.47713496]
[1763628374865,0.1684,3037.1,3037.0,3.7868]
[1763628375458,0.6557,3037.1,3037.0,3.7868]
[1763628376756,0.1684,3037.1,3037.0,3.7868]
[1763628377827,0.6557,3037.1,3037.0,3.7868]
[1763628379283,0.1684,3037.1,3037.0,3.7868]
[1763628379987,0.1122,3037.1,3037.0,4.7727]
[1763628380205,0.1122,3037.1,3037.0,8.87197085]
[1763628380406,0.0012,3037.1,3037.0,13.56196411]
[1763628380896,0.0012,3037.1,3037.0,14.46895675]
[1763628381393,0.0012,3037.1,3037.0,24.04100475]
[1763628381698,0.002,3037.5,3037.4,13.13157164]
[1763628381908,0.002,3037.5,3037.4,19.69453206]
[1763628382249,0.002,3037.5,3037.4,7.96335306]
[1763628382449,0.002,3037.7,3037.5,24.10705564]
[1763628382688,0.002,3037.7,3037.6,21.16818364]
[1763628382901,0.111,3038.5,3037.8,12.57306264]
[1763628383185,0.4937,3039.0,3037.8,13.55896264]
[1763628383346,0.111,3038.6,3037.8,16.85081858]
[1763628383680,0.111,3038.6,3037.8,16.45141303]
[1763628383873,0.111,3038.6,3037.8,15.35781403]
[1763628384075,0.111,3038.6,3037.8,13.33571203]
[1763628384276,0.0012,3037.9,3037.8,13.33571203]
[1763628384596,0.0012,3037.9,3037.8,16.09694903]
[1763628384879,0.0012,3037.9,3037.8,13.91674803]
[1763628385679,0.0012,3037.9,3037.8,14.32688603]
[1763628386268,0.0012,3037.9,3037.8,13.47470003]
[1763628386788,0.0012,3037.9,3037.8,13.65626303]
[1763628387667,0.0012,3037.9,3037.8,14.77563103]
[1763628388764,0.111,3038.8,3038.3,0.90699264]
[1763628388980,0.111,3038.8,3038.7,4.68999326]
[1763628389402,0.1727,3038.8,3038.7,4.68999326]
[1763628390501,0.6553,3038.8,3038.7,4.68999326]
[1763628391496,0.1727,3038.8,3038.6,3.29098317]
[1763628391683,0.0048,3038.7,3038.6,3.29098317]
[1763628392694,0.0048,3038.7,3038.5,3.29109758]
[1763628392898,0.0048,3038.7,3038.5,7.83700456]
[1763628393102,0.111,3038.8,3038.5,7.83700456]
[1763628393318,0.111,3038.8,3038.5,4.54590698]
[1763628393805,0.111,3038.8,3038.6,3.7868]
[1763628394001,0.5979,3038.8,3038.6,3.7868]
[1763628394198,0.0617,3038.7,3038.6,3.7868]
[1763628394813,0.5443,3038.7,3038.3,3.29130256]
[1763628395010,0.0611,3038.4,3038.2,4.19836803]
[1763628395207,0.0054,3038.3,3038.2,4.19836803]
[1763628395701,0.4923,3038.3,3037.9,7.4904878]
[1763628395891,0.0563,3038.2,3037.9,9.08721591]
[1763628396086,0.4869,3038.6,3038.1,5.5969859]
[1763628396298,0.4869,3038.6,3038.1,4.68999326]
[1763628397227,0.0617,3038.2,3038.1,5.5969859]
[1763628397521,0.0617,3038.2,3037.9,2.50372075]
[1763628397723,0.4569,3038.0,3037.9,3.29166823]
[1763628399541,0.0914,3038.2,3037.9,3.29166823]
[1763628400205,0.0914,3038.2,3037.9,7.07846823]
[1763628402320,0.0914,3038.2,3038.0,7.07841269]
[1763628402699,0.4533,3038.1,3038.0,7.07841269]
[1763628402924,0.5483,3038.1,3038.0,7.07841269]
[1763628403319,0.4533,3038.1,3038.0,7.07841269]
[1763628404030,0.4533,3038.1,3038.0,3.7868]
[1763628404337,0.5483,3038.1,3037.8,0.90699264]
[1763628404639,0.1132,3037.9,3037.8,0.90699264]
[1763628404847,0.2242,3037.9,3037.8,0.90699264]
[1763628406449,0.1119,3037.9,3037.8,9.31099192]
[1763628407926,0.1119,3037.9,3037.8,13.09779192]
[1763628408248,0.1111,3037.9,3037.8,13.09779192]
[1763628408845,0.111,3037.9,3037.8,13.56819192]
[1763628409155,0.4631,3038.4,3037.8,16.86004786]
[1763628409312,0.111,3038.3,3037.8,16.43889778]
[1763628409717,0.5741,3038.3,3037.8,16.89819778]
[1763628410639,0.0836,3037.9,3037.8,12.67664184]
[1763628410821,0.111,3038.2,3037.8,15.96849778]
[1763628411234,0.4631,3038.1,3037.8,15.96849778]
[1763628411557,0.0836,3037.9,3037.8,12.67664184]
[1763628411749,0.1951,3037.9,3037.8,12.67664184]
[1763628412555,0.0836,3037.9,3037.8,12.67664184]
[1763628413547,0.4631,3038.1,3037.8,12.67664184]
[1763628413745,0.4631,3038.1,3037.9,3.7868]
[1763628414124,0.0844,3038.0,3037.9,3.7868]
[1763628415356,0.0844,3038.0,3037.9,7.07854758]
[1763628417040,0.111,3038.2,3037.9,7.07854758]
[1763628417352,0.111,3038.2,3037.9,10.37029516]
[1763628418670,3.29300438,3038.6,3038.1,5.16039326]
[1763628418671,0.002,3038.6,3038.1,5.16039326]
[1763628418826,0.111,3038.5,3038.4,4.68999326]
[1763628419352,0.197,3038.5,3038.1,4.68999326]
[1763628419526,0.5741,3038.5,3038.2,3.29142255]
[1763628419727,0.5741,3038.5,3038.3,3.7868]
[1763628420354,0.111,3038.5,3038.3,3.7868]
[1763628421356,0.002,3038.6,3038.3,3.7868]
[1763628421562,0.111,3038.4,3038.3,3.7868]
[1763628421761,0.111,3038.4,3038.3,7.07811422]
[1763628422756,0.111,3038.4,3038.3,7.54851422]
[1763628423373,0.111,3038.4,3038.3,9.10150722]
[1763628423552,0.111,3038.4,3038.3,9.56080722]
[1763628423754,0.002,3038.5,3038.3,12.85212144]
[1763628423941,0.002,3038.5,3038.4,5.14929326]
[1763628424146,0.002,3038.5,3038.4,5.61969326]
[1763628424361,0.002,3038.5,3038.4,7.7030437]
[1763628426075,0.002,3038.5,3038.4,11.90124223]
[1763628426976,0.002,3038.5,3038.4,17.79295623]
[1763628428683,0.002,3038.5,3038.4,21.57975623]
[1763628428882,0.002,3038.5,3038.4,20.92275623]
[1763628430494,0.002,3038.5,3038.4,17.13595623]
[1763628432213,0.0012,3038.5,3038.4,17.13595623]
[1763628432708,0.0012,3038.5,3038.4,14.22767223]
[1763628433401,0.5504,3038.5,3038.4,0.90699264]
[1763628433602,0.5504,3038.5,3038.2,3.29140051]
[1763628433918,0.0764,3038.4,3038.2,3.29140051]
[1763628434112,0.4689,3038.3,3038.2,4.19839315]
[1763628434986,0.4689,3038.3,3038.2,8.88419767]
[1763628435283,0.38169495,3038.3,3038.2,8.88419767]
[1763628435579,0.1122,3038.5,3038.2,14.75587248]
[1763628435784,0.1122,3038.5,3038.4,4.68580452]
[1763628436216,0.1159,3038.5,3038.4,7.97701041]
[1763628436613,0.1159,3038.5,3038.4,4.68580452]
[1763628436918,0.4841,3038.5,3038.2,8.88421703]
[1763628437116,0.0037,3038.3,3038.2,8.88421703]
[1763628438935,0.0037,3038.3,3038.2,5.59279716]
[1763628439832,0.1122,3038.5,3038.2,8.88421971]
[1763628440009,0.1122,3038.5,3038.2,9.37591971]
[1763628440846,0.3719,3038.3,3038.2,5.59279716]
[1763628441133,0.3719,3038.3,3038.2,8.88421971]
[1763628442180,0.3719,3038.3,3037.9,0.001]
[1763628442181,0.3756,3038.3,3037.9,3.7878]
[1763628442431,0.1122,3038.5,3038.0,4.68580452]
[1763628442632,0.3719,3038.3,3038.0,7.97741921]
[1763628442947,0.0012,3038.5,3038.0,7.97741921]
[1763628443099,0.111,3038.4,3038.2,4.68580452]
[1763628443526,0.111,3038.3,3038.2,4.68580452]
[1763628444234,0.111,3038.4,3038.2,5.66980452]
[1763628444433,0.111,3038.4,3038.3,0.57027198]
[1763628444624,0.111,3038.4,3038.3,3.29131422]
[1763628445830,0.0012,3038.5,3038.3,3.29131422]
[1763628446133,0.0012,3038.5,3038.4,4.68580452]
[1763628446305,0.1122,3038.5,3038.4,4.68580452]
[1763628446500,0.1159,3038.5,3038.4,8.47260452]
[1763628446836,0.0012,3038.5,3038.4,10.46982782]
[1763628447037,0.0012,3038.5,3038.4,10.96212782]
[1763628447404,0.3731,3038.5,3038.4,5.2923233]
[1763628447742,0.3731,3038.5,3038.4,12.24111041]
[1763628447743,0.0012,3038.5,3038.4,12.24111041]
[1763628447936,0.0012,3038.5,3038.4,12.69731041]
[1763628448124,0.0012,3038.5,3038.4,17.38311493]
[1763628448441,0.0012,3038.5,3038.4,12.69731041]
[1763628449950,0.0012,3038.5,3038.4,16.51880041]
[1763628450124,0.0012,3038.5,3038.4,17.95083147]
[1763628450454,0.0012,3038.5,3038.4,17.15893147]
[1763628450752,0.0012,3038.5,3038.4,16.77601947]
[1763628451262,0.0012,3038.5,3038.4,21.46182399]
[1763628451620,0.0012,3038.5,3038.4,22.36881663]
[1763628451815,0.0012,3038.5,3038.4,43.66785563]
[1763628452059,0.0012,3038.5,3038.4,26.64329263]
[1763628452269,0.0012,3038.5,3038.4,25.49231263]
[1763628452822,0.0012,3038.5,3038.4,20.27111863]
[1763628453054,0.0012,3038.5,3038.4,23.64931663]
[1763628453941,0.0012,3038.5,3038.4,32.86874863]
[1763628454153,0.0012,3038.5,3038.4,31.11943263]
[1763628454923,0.0012,3038.5,3038.4,33.07673163]
[1763628456155,0.0004,3038.5,3038.4,36.47796163]
[1763628456468,0.002,3038.6,3038.5,18.667262]
[1763628456674,0.002,3038.6,3038.5,22.89554636]
[1763628456826,0.002,3038.6,3038.5,21.41879736]
[1763628457027,0.002,3038.6,3038.5,22.98285936]
[1763628457499,0.002,3038.6,3038.5,19.618017]
[1763628457957,0.002,3038.6,3038.5,19.647017]
[1763628458158,0.002,3038.6,3038.5,18.171897]
[1763628458367,0.002,3038.6,3038.5,21.46299458]
[1763628459854,0.002,3038.6,3038.5,21.46399458]
[1763628460051,0.002,3038.6,3038.5,12.21377458]
[1763628460290,0.002,3038.6,3038.5,21.49299458]
[1763628460905,0.002,3038.6,3038.5,20.71855258]
[1763628461058,0.002,3038.6,3038.5,17.33950958]
[1763628461385,0.002,3038.9,3038.8,4.69139264]
[1763628461587,0.002,3038.9,3038.8,9.84633642]
[1763628461973,0.002,3038.9,3038.8,11.84874042]
[1763628462300,0.002,3038.9,3038.8,9.84633642]
[1763628463191,0.002,3038.9,3038.8,16.33052809]
[1763628463996,0.4602,3038.9,3038.8,15.92142809]
[1763628464494,0.002,3038.9,3038.8,16.37882809]
[1763628464833,0.4585,3039.6,3038.9,1.36439264]
[1763628465046,0.1863,3039.8,3039.6,4.68580452]
[1763628465349,0.1863,3039.8,3039.7,3.28979833]
[1763628465639,0.6448,3039.8,3039.7,3.28979833]
[1763628465839,0.6494,3039.8,3039.7,3.28979833]
[1763628466195,0.1909,3039.8,3039.7,3.28979833]
[1763628466397,0.1909,3039.8,3039.6,7.97570291]
[1763628466602,0.0091,3039.7,3039.6,7.97570291]
[1763628467550,0.49570562,3039.7,3038.9,3.29060343]
[1763628467710,0.49570562,3039.7,3038.5,3.29578436]
[1763628467711,0.1015,3039.0,3038.5,3.29207243]
[1763628467905,0.1006,3038.6,3038.5,7.9778754]
[1763628468099,0.2116,3038.6,3038.5,4.68680452]
[1763628468434,0.5702,3038.6,3038.5,4.68680452]
[1763628468662,0.2116,3038.6,3038.5,7.9779021]
[1763628469027,0.2116,3038.6,3038.5,4.68680452]
[1763628469355,0.5702,3038.6,3038.5,0.001]
[1763628469967,0.4582,3038.6,3038.5,7.9779021]
[1763628470166,0.4582,3038.6,3038.5,4.68680452]
[1763628470327,0.4582,3038.6,3038.5,7.9779021]
[1763628470957,0.0938,3038.8,3038.5,8.4353021]
[1763628471261,3.29038348,3039.2,3038.5,8.4353021]
[1763628471262,0.111,3038.9,3038.7,7.97666758]
[1763628471461,0.111,3038.9,3038.8,4.68580452]
[1763628471837,0.1156,3038.9,3038.8,4.68580452]
[1763628472550,0.1156,3038.9,3038.5,3.78779758]
[1763628472731,0.1934,3038.9,3038.7,4.68580452]
[1763628472932,0.6628,3038.9,3038.7,4.68580452]
[1763628473156,0.0047,3038.8,3038.7,4.68580452]
[1763628473659,0.5805,3038.8,3038.5,4.68680452]
[1763628473860,0.0046,3038.6,3038.5,7.9779021]
[1763628474046,0.5758,3038.8,3038.5,7.9779021]
[1763628474362,0.111,3038.8,3038.5,7.9779021]
[1763628474667,0.111,3038.8,3038.5,4.68680452]
[1763628474668,0.0047,3038.6,3038.5,4.68680452]
[1763628475664,0.0047,3038.6,3038.5,7.9779021]
[1763628476466,0.0047,3038.6,3038.5,4.68680452]
[1763628476845,0.4695,3038.6,3038.5,0.001]
[1763628477239,0.5805,3038.6,3038.5,0.001]
[1763628477452,0.5805,3038.6,3038.5,4.68680452]
[1763628477758,0.1157,3038.6,3038.5,4.68680452]
[1763628480271,0.1149,3038.6,3038.5,4.68680452]
[1763628481588,0.0039,3038.6,3038.5,4.68680452]
[1763628481736,0.5882,3038.6,3038.5,0.001]
[1763628483250,0.4772,3038.6,3038.5,0.001]
[1763628483446,0.5882,3038.6,3038.5,0.001]
[1763628487327,0.0039,3038.6,3038.5,0.001]
[1763628487593,0.5882,3038.6,3038.5,0.001]
[1763628487994,0.5882,3038.6,3038.5,3.7854]
[1763628492995,0.1149,3038.6,3038.5,7.07649758]
[1763628493967,0.1149,3038.6,3038.5,3.7854]
[1763628494164,0.6061,3038.6,3038.5,3.7854]
[1763628495007,3.89708927,3038.6,3038.5,3.7854]
[1763628495216,9.89539043,3038.6,3038.5,0.001]
[1763628495371,10.91276481,3038.6,3038.5,0.001]
[1763628495709,1.31249664,3038.5,3038.1,0.001]
[1763628495904,1.31249664,3038.1,3037.8,0.001]
[1763628496106,6.17480116,3037.9,3037.8,0.001]
[1763628496310,6.71262887,3037.9,3037.8,0.001]
[1763628496478,10.37337645,3037.9,3037.8,0.001]
[1763628496809,6.39670275,3037.9,3037.8,0.001]
[1763628498407,5.68757193,3037.9,3037.8,0.001]
[1763628498634,6.39591637,3037.9,3037.8,0.001]
[1763628500303,6.43292199,3037.9,3037.8,0.001]
[1763628504435,5.72377755,3037.9,3037.8,0.001]
[1763628505259,5.7220913,3037.9,3037.8,0.001]
[1763628505712,5.85395153,3037.9,3037.8,0.001]
[1763628509442,6.55891331,3037.9,3037.8,0.001]
[1763628509642,6.55891331,3037.9,3037.5,0.001]
[1763628509643,0.405504,3037.7,3037.5,0.001]
[1763628509810,2.82433412,3037.6,3037.5,0.001]
[1763628510008,3.83543736,3037.6,3037.5,0.001]
[1763628510227,3.96732455,3037.6,3037.5,0.001]
[1763628511707,7.25939723,3037.6,3037.5,0.001]
[1763628511932,7.22239161,3037.6,3037.5,0.001]
[1763628517412,6.34135975,3037.6,3037.5,0.001]
[1763628517619,6.37836537,3037.6,3037.5,0.001]
[1763628518049,6.37836537,3037.6,3036.8,0.001]
[1763628518050,0.4787,3037.2,3036.8,0.001]
[1763628518350,1.02810962,3037.1,3036.8,0.001]
[1763628518656,1.46614696,3037.1,3036.8,0.001]
[1763628518953,7.84684807,3037.1,3036.8,0.001]
[1763628519129,7.80984245,3037.1,3036.8,0.001]
[1763628519327,11.98311068,3037.1,3036.8,0.001]
[1763628520249,11.10245711,3037.1,3036.8,0.001]
[1763628520551,12.27666187,3037.1,3036.8,0.001]
[1763628521323,11.10245711,3037.1,3036.8,0.001]